fUSD/lending_fUSD_20240109
["ID","MTS","AMOUNT","RATE_DAILY","PERIOD"]
[310913932,1704814367718,-844.05,0.00041835,30]
[310913933,1704814367727,-851.49,0.00041835,30]
[310913934,1704814367737,-562.95,0.00041835,30]
[310913935,1704814367747,-1162.12,0.00041835,30]
[310913936,1704814367756,-872.21,0.00041835,30]
[310913937,1704814367765,-500.0,0.00041835,30]
[310913938,1704814367775,-706.17,0.00041835,30]
[310913939,1704814367786,-980.88,0.00041835,30]
[310913940,1704814367797,-730.77,0.00041835,30]
[310913941,1704814367807,-500.0,0.00041835,30]
[310913942,1704814367818,-500.0,0.00041835,30]
[310913943,1704814367828,-635.39,0.00041835,30]
[310913944,1704814367839,-500.0,0.00041835,30]
[310913945,1704814367848,-921.8,0.00041835,30]
[310913946,1704814367857,-500.0,0.00041835,30]
[310913947,1704814367868,-594.71460591,0.00041835,30]
[310913948,1704814367877,-1001.03,0.00041835,30]
[310913949,1704814367886,-2820.32,0.00041835,30]
[310913950,1704814367895,-500.0,0.00041835,30]
[310913951,1704814367905,-878.02,0.00041835,30]
[310913952,1704814367914,-2535.74,0.00041835,30]
[310913953,1704814367924,-613.33,0.00041835,30]
[310913954,1704814367933,-500.0,0.00041835,30]
[310913955,1704814367942,-1197.1,0.00041835,30]
[310913956,1704814367951,-500.0,0.00041835,30]
[310913957,1704814367961,-703.38,0.00041835,30]
[310913958,1704814367970,-500.0,0.00041835,30]
[310913959,1704814367979,-581.61206489,0.00041835,30]
[310913960,1704814367989,-500.0,0.00041835,30]
[310913961,1704814367998,-500.0,0.00041835,30]
[310913962,1704814368008,-565.10255924,0.00041835,30]
[310913963,1704814368017,-500.0,0.00041835,30]
[310913964,1704814368027,-1209.27,0.00041835,30]
[310913965,1704814368038,-3470.75,0.00041835,30]
[310913966,1704814368048,-736.81,0.00041835,30]
[310913967,1704814368058,-500.0,0.00041835,30]
[310913968,1704814368068,-500.0,0.00041835,30]
[310913969,1704814368077,-500.0,0.00041835,30]
[310913970,1704814368086,-832.75,0.00041835,30]
[310913971,1704814368097,-1686.91,0.00041835,30]
[310913972,1704814368106,-2537.38,0.00041835,30]
[310913973,1704814368117,-2682.01,0.00041835,30]
[310913974,1704814368126,-1565.58,0.00041835,30]
[310913975,1704814368135,-740.27,0.00041835,30]
[310913976,1704814368145,-501.25,0.00041835,30]
[310913977,1704814368154,-600.36,0.00041835,30]
[310913978,1704814368164,-500.0,0.00041835,30]
[310913979,1704814368173,-1224.61,0.00041835,30]
[310913980,1704814368183,-2236.0,0.00041835,30]
[310913981,1704814368193,-2897.3,0.00041835,30]
[310913982,1704814368203,-1928.1,0.00041835,30]
[310913983,1704814368212,-1993.87,0.00041835,30]
[310913984,1704814368222,-576.08,0.00041835,30]
[310913985,1704814368231,-500.0,0.00041835,30]
[310913986,1704814368241,-556.49,0.00041835,30]
[310913987,1704814368250,-624.68,0.00041835,30]
[310913988,1704814368260,-2377.69,0.00041835,30]
[310913989,1704814368270,-770.16,0.00041835,30]
[310913990,1704814368279,-1122.24,0.00041835,30]
[310913991,1704814368288,-500.0,0.00041835,30]
[310913992,1704814368297,-500.0,0.00041835,30]
[310913993,1704814368306,-500.0,0.00041835,30]
[310913994,1704814368316,-2275.75,0.00041835,30]
[310913995,1704814368326,-2702.81,0.00041835,30]
[310913996,1704814368335,-325.13408972,0.00041835,30]
[310913997,1704814368344,-500.0,0.00041835,30]
[310913998,1704814368354,-1074.62,0.00041835,30]
[310913999,1704814368363,-500.0,0.00041835,30]
[310914000,1704814368374,-2309.85,0.00041835,30]
[310914001,1704814368383,-787.86,0.00041835,30]
[310914002,1704814368393,-3474.73,0.00041835,30]
[310914003,1704814368402,-2283.1,0.00041835,30]
[310914004,1704814368411,-500.0,0.00041835,30]
[310914005,1704814368421,-1596.69,0.00041835,30]
[310914006,1704814368431,-1645.78,0.00041835,30]
[310914007,1704814368441,-1113.3,0.00041835,30]
[310914008,1704814368450,-1309.33,0.00041835,30]
[310914009,1704814368460,-1314.94,0.00041835,30]
[310914010,1704814368470,-500.0,0.00041835,30]
[310914011,1704814368480,-1968.01,0.00041835,30]
[310914012,1704814368489,-1096.11,0.00041835,30]
[310914013,1704814368498,-1246.22,0.00041835,30]
[310914014,1704814368507,-721.49,0.00041835,30]
[310914015,1704814368516,-544.47,0.00041835,30]
[310914016,1704814368526,-1433.82,0.00041835,30]
[310914017,1704814368535,-2589.92,0.00041835,30]
[310914018,1704814368544,-500.0,0.00041835,30]
[310914019,1704814368555,-500.0,0.00041835,30]
[310914020,1704814368565,-500.0,0.00041835,30]
[310914021,1704814368574,-1499.73,0.00041835,30]
[310914022,1704814368583,-507.44342529,0.00041835,30]
[310914023,1704814368592,-500.0,0.00041835,30]
[310914024,1704814368601,-1138.55,0.00041835,30]
[310914025,1704814368612,-2193.46,0.00041835,30]
[310914026,1704814368621,-1590.0,0.00041835,30]
[310914027,1704814368630,-1703.93,0.00041835,30]
[310914028,1704814368639,-500.0,0.00041835,30]
[310914029,1704814368648,-1188.38,0.00041835,30]
[310914030,1704814368658,-355.12388157,0.00041835,30]
[310914031,1704814368669,-500.0,0.00041835,30]
[310914032,1704814368679,-987.73,0.00041835,30]
[310914033,1704814368688,-520.23,0.00041835,30]
[310914034,1704814368698,-1982.92,0.00041835,30]
[310914035,1704814368707,-523.39,0.00041835,30]
[310914036,1704814368717,-641.09,0.00041835,30]
[310914037,1704814368726,-562.23,0.00041835,30]
[310914038,1704814368737,-931.93,0.00041835,30]
[310914039,1704814368746,-552.3,0.00041835,30]
[310914040,1704814368755,-1038.62,0.00041835,30]
[310914041,1704814368765,-1121.37,0.00041835,30]
[310914042,1704814368774,-3941.88,0.00041835,30]
[310914043,1704814368784,-1704.41,0.00041835,30]
[310914044,1704814368793,-1031.35,0.00041835,30]
[310914045,1704814368803,-600.61,0.00041835,30]
[310914046,1704814368812,-672.4,0.00041835,30]
[310914047,1704814368821,-1793.95,0.00041835,30]
[310914048,1704814368833,-830.11,0.00041835,30]
[310914049,1704814368842,-626.73,0.00041835,30]
[310914050,1704814368851,-1939.09,0.00041835,30]
[310914051,1704814368860,-500.0,0.00041835,30]
[310914052,1704814368869,-409.97040657,0.00041835,30]
[310914053,1704814368879,-1992.23,0.00041835,30]
[310914054,1704814368888,-1672.06,0.00041835,30]
[310914055,1704814368898,-500.0,0.00041835,30]
[310914056,1704814368907,-1049.82,0.00041835,30]
[310914057,1704814368917,-500.0,0.00041835,30]
[310914058,1704814368926,-832.6,0.00041835,30]
[310914059,1704814368935,-592.07,0.00041835,30]
[310914060,1704814368945,-1154.73,0.00041835,30]
[310914061,1704814368954,-617.46,0.00041835,30]
[310914062,1704814368964,-500.0,0.00041835,30]
[310914063,1704814368973,-2019.49,0.00041835,30]
[310914064,1704814368983,-500.0,0.00041835,30]
[310914065,1704814368992,-623.61,0.00041835,30]
[310914066,1704814369001,-1575.33,0.00041835,30]
[310914067,1704814369011,-500.0,0.00041835,30]
[310914068,1704814369020,-500.0,0.00041835,30]
[310914069,1704814369030,-1208.87,0.00041835,30]
[310914070,1704814369039,-589.72,0.00041835,30]
[310914071,1704814369049,-500.0,0.00041835,30]
[310914072,1704814369058,-500.0,0.00041835,30]
[310914073,1704814369068,-1100.7,0.00041835,30]
[310914074,1704814369077,-574.55,0.00041835,30]
[310914075,1704814369087,-1443.2,0.00041835,30]
[310914076,1704814369096,-1118.67,0.00041835,30]
[310914077,1704814369105,-500.0,0.00041835,30]
[310914078,1704814369115,-1567.43,0.00041835,30]
[310914079,1704814369125,-500.0,0.00041835,30]
[310914080,1704814369134,-538.72,0.00041835,30]
[310914081,1704814369144,-500.0,0.00041835,30]
[310914082,1704814369153,-615.94,0.00041835,30]
[310914083,1704814369162,-500.0,0.00041835,30]
[310914084,1704814369172,-1835.01,0.00041835,30]
[310914085,1704814369182,-500.0,0.00041835,30]
[310914086,1704814369192,-835.4,0.00041835,30]
[310914087,1704814369201,-500.0,0.00041835,30]
[310914088,1704814369211,-500.0,0.00041835,30]
[310914089,1704814369221,-500.0,0.00041835,30]
[310914090,1704814369230,-2298.01,0.00041835,30]
[310914091,1704814369240,-500.0,0.00041835,30]
[310914092,1704814369249,-870.0,0.00041835,30]
[310914093,1704814369259,-539.47,0.00041835,30]
[310914094,1704814369268,-1310.11,0.00041835,30]
[310914095,1704814369279,-1150.5,0.00041835,30]
[310914096,1704814369288,-500.0,0.00041835,30]
[310914097,1704814369298,-500.0,0.00041835,30]
[310914098,1704814369308,-1400.49,0.00041835,30]
[310914099,1704814369317,-1360.64,0.00041835,30]
[310914100,1704814369327,-500.0,0.00041835,30]
[310914101,1704814369340,-1204.31,0.00041835,30]
[310914102,1704814369350,-923.19,0.00041835,30]
[310914103,1704814369361,-771.54,0.00041835,30]
[310914104,1704814369370,-2584.55,0.00041835,30]
[310914105,1704814369379,-1160.23,0.00041835,30]
[310914106,1704814369389,-339.33601826,0.00041835,30]
[310914107,1704814369398,-1315.98,0.00041835,30]
[310914108,1704814369408,-500.0,0.00041835,10]
[310914109,1704814369417,-1972.08,0.00041835,30]
[310914110,1704814369427,-1668.26,0.00041835,30]
[310914111,1704814369436,-1439.0,0.00041835,30]
[310914112,1704814369446,-1429.35,0.00041835,30]
[310914113,1704814369456,-2461.03,0.00041835,30]
[310914114,1704814369465,-946.78,0.00041835,30]
[310914115,1704814369475,-713.51,0.00041835,30]
[310914116,1704814369485,-500.0,0.00041835,4]
[310914117,1704814369495,-1659.56,0.00041835,30]
[310914118,1704814369504,-448.52125235,0.00041835,30]
[310914119,1704814369514,-500.0,0.00041835,30]
[310914120,1704814369524,-500.0,0.00041835,30]
[310914121,1704814369534,-624.48992954,0.00041835,30]
[310914122,1704814369543,-500.0,0.00041835,30]
[310914123,1704814369552,-803.78,0.00041835,30]
[310914124,1704814369562,-500.0,0.00041835,30]
[310914125,1704814369571,-614.42,0.00041835,30]
[310914126,1704814369581,-227.2846174,0.00041835,7]
[310914127,1704814369591,-500.0,0.00041835,30]
[310914128,1704814369600,-800.95,0.00041835,30]
[310914129,1704814369610,-1758.64,0.00041835,30]
[310914130,1704814369619,-500.0,0.00041835,30]
[310914131,1704814369629,-1778.42,0.00041835,30]
[310914132,1704814369639,-848.11,0.00041835,30]
[310914133,1704814369649,-3407.77,0.00041835,30]
[310914134,1704814369658,-2138.28,0.00041835,30]
[310914135,1704814369668,-500.0,0.00041835,30]
[310914136,1704814369678,-500.0,0.00041835,30]
[310914137,1704814369687,-886.41,0.00041835,30]
[310914138,1704814369698,-256.60461278,0.00041835,30]
[310914139,1704814369707,-1677.31,0.00041835,30]
[310914140,1704814369717,-500.0,0.00041835,30]
[310914141,1704814369727,-500.0,0.00041835,30]
[310914142,1704814369737,-3178.9,0.00041835,30]
[310914143,1704814369746,-500.0,0.00041835,30]
[310914144,1704814369756,-1138.73,0.00041835,30]
[310914145,1704814369765,-2732.04,0.00041835,30]
[310914146,1704814369775,-500.0,0.00041835,30]
[310914147,1704814369785,-770.65,0.00041835,30]
[310914148,1704814369794,-500.0,0.00041835,30]
[310914149,1704814369804,-2194.76,0.00041835,30]
[310914150,1704814369814,-500.0,0.00041835,30]
[310914151,1704814369823,-1048.75,0.00041835,30]
[310914152,1704814369836,-500.0,0.00041835,30]
[310914153,1704814369845,-1329.34,0.00041835,30]
[310914154,1704814369855,-2754.0,0.00041835,30]
[310914155,1704814369865,-1008.53,0.00041835,30]
[310914156,1704814369874,-1507.83,0.00041835,30]
[310914157,1704814369884,-680.5,0.00041835,30]
[310914158,1704814369894,-500.0,0.00041835,30]
[310914159,1704814369903,-634.38,0.00041835,30]
[310914160,1704814369913,-2700.24,0.00041835,30]
[310914161,1704814369922,-500.0,0.00041835,30]
[310914162,1704814369931,-1356.37,0.00041835,30]
[310914163,1704814369941,-500.0,0.00041835,30]
[310914164,1704814369951,-651.64,0.00041835,30]
[310914165,1704814369960,-500.0,0.00041835,30]
[310914166,1704814369970,-500.0,0.00041835,30]
[310914167,1704814369980,-500.0,0.00041835,30]
[310914168,1704814369990,-952.35,0.00041835,30]
[310914169,1704814369999,-500.0,0.00041835,30]
[310914170,1704814370009,-500.0,0.00041835,30]
[310914171,1704814370019,-1810.23,0.00041835,30]
[310914172,1704814370029,-500.0,0.00041835,30]
[310914173,1704814370039,-587.58,0.00041835,30]
[310914174,1704814370048,-625.64,0.00041835,30]
[310914175,1704814370058,-676.46,0.00041835,30]
[310914176,1704814370068,-500.0,0.00041835,30]
[310914177,1704814370078,-500.0,0.00041835,30]
[310914178,1704814370087,-1006.7,0.00041835,30]
[310914179,1704814370098,-610.00038558,0.00041835,30]
[310914180,1704814370108,-1037.96,0.00041835,30]
[310914181,1704814370119,-1236.35,0.00041835,30]
[310914182,1704814370128,-500.0,0.00041835,30]
[310914183,1704814370138,-1919.15,0.00041835,30]
[310914184,1704814370148,-500.0,0.00041835,30]
[310914185,1704814370158,-1578.69,0.00041835,30]
[310914186,1704814370168,-500.0,0.00041835,30]
[310914187,1704814370178,-1865.73,0.00041835,30]
[310914188,1704814370188,-500.0,0.00041835,30]
[310914189,1704814370198,-1362.93,0.00041835,30]
[310914190,1704814370209,-1537.84,0.00041835,30]
[310914191,1704814370219,-2456.66,0.00041835,30]
[310914192,1704814370228,-502.34339373,0.00041835,30]
[310914193,1704814370238,-500.0,0.00041835,30]
[310914194,1704814370248,-589.31,0.00041835,30]
[310914195,1704814370259,-1710.93,0.00041835,30]
[310914196,1704814370268,-500.0,0.00041835,30]
[310914197,1704814370279,-788.83,0.00041835,30]
[310914198,1704814370289,-2756.46,0.00041835,30]
[310914199,1704814370299,-2705.23,0.00041835,30]
[310914200,1704814370309,-2588.77,0.00041835,30]
[310914201,1704814370319,-946.47,0.00041835,30]
[310914202,1704814370328,-500.0,0.00041835,30]
[310914203,1704814370339,-500.0,0.00041835,30]
[310914204,1704814370350,-500.0,0.00041835,30]
[310914205,1704814370360,-825.0,0.00041835,30]
[310914206,1704814370371,-821.89,0.00041835,30]
[310914207,1704814370382,-1714.7,0.00041835,30]
[310914208,1704814370392,-987.47,0.00041835,30]
[310914209,1704814370402,-12516.53,0.00041835,30]
[310914210,1704814370412,-2523.55,0.00041835,30]
[310914211,1704814370421,-500.0,0.00041835,30]
[310914212,1704814370432,-1027.68,0.00041835,30]
[310914213,1704814370442,-1217.97,0.00041835,30]
[310914214,1704814370451,-1474.62,0.00041835,30]
[310914215,1704814370461,-500.0,0.00041835,30]
[310914216,1704814370471,-500.0,0.00041835,30]
[310914217,1704814370481,-1454.57,0.00041835,30]
[310914218,1704814370491,-1048.97,0.00041835,30]
[310914219,1704814370501,-2127.96,0.00041835,30]
[310914220,1704814370511,-500.0,0.00041835,30]
[310914221,1704814370521,-1299.93,0.00041835,30]
[310914222,1704814370531,-500.0,0.00041835,30]
[310914223,1704814370541,-2596.84,0.00041835,30]
[310914224,1704814370551,-500.0,0.00041835,30]
[310914225,1704814370561,-725.04,0.00041835,30]
[310914226,1704814370571,-1950.17,0.00041835,30]
[310914227,1704814370581,-2106.17,0.00041835,30]
[310914228,1704814370591,-794.41,0.00041835,30]
[310914229,1704814370602,-3285.45,0.00041835,30]
[310914230,1704814370613,-1542.09,0.00041835,7]
[310914231,1704814370623,-500.0,0.00041835,30]
[310914232,1704814370632,-2655.79,0.00041835,30]
[310914233,1704814370642,-7119.89,0.00041835,30]
[310914234,1704814370651,-650.25,0.00041835,30]
[310914235,1704814370661,-1087.65,0.00041835,30]
[310914236,1704814370671,-500.0,0.00041835,30]
[310914237,1704814370681,-500.0,0.00041835,30]
[310914238,1704814370690,-913.65,0.00041835,30]
[310914239,1704814370700,-977.92,0.00041835,30]
[310914240,1704814370710,-2362.44,0.00041835,30]
[310914241,1704814370720,-576.88,0.00041835,30]
[310914242,1704814370729,-1112.82,0.00041835,30]
[310914243,1704814370740,-1726.68,0.00041835,30]
[310914244,1704814370750,-3996.86,0.00041835,30]
[310914245,1704814370760,-2396.9,0.00041835,30]
[310914246,1704814370770,-500.0,0.00041835,30]
[310914247,1704814370779,-2486.71,0.00041835,30]
[310914248,1704814370789,-3045.65,0.00041835,30]
[310914249,1704814370799,-500.0,0.00041835,30]
[310914250,1704814370809,-502.99,0.00041835,30]
[310914251,1704814370820,-4277.01,0.00041835,30]
[310914252,1704814370832,-2246.6,0.00041835,30]
[310914253,1704814370841,-1448.82,0.00041835,2]
[310914254,1704814370851,-1043.39,0.00041835,30]
[310914255,1704814370861,-502.73,0.00041835,30]
[310914256,1704814370871,-534.65,0.00041835,30]
[310914257,1704814370881,-891.36,0.00041835,30]
[310914258,1704814370890,-500.0,0.00041835,30]
[310914259,1704814370900,-1353.62,0.00041835,30]
[310914260,1704814370911,-2632.89,0.00041835,30]
[310914261,1704814370920,-1838.21,0.00041835,30]
[310914262,1704814370931,-1576.53,0.00041835,30]
[310914263,1704814370940,-1105.49,0.00041835,30]
[310914264,1704814370950,-862.54,0.00041835,30]
[310914265,1704814370960,-1537.91,0.00041835,30]
[310914266,1704814370969,-500.0,0.00041835,30]
[310914267,1704814370979,-678.18,0.00041835,30]
[310914268,1704814370990,-469.45396617,0.00041835,30]
[310914269,1704814371000,-500.0,0.00041835,30]
[310914270,1704814371010,-4265.52,0.00041835,30]
[310914271,1704814371020,-1574.3,0.00041835,30]
[310914272,1704814371030,-3580.78,0.00041835,30]
[310914273,1704814371040,-726.93,0.00041835,30]
[310914274,1704814371050,-10916.38,0.00041835,30]
[310914275,1704814371060,-500.0,0.00041835,30]
[310914276,1704814371070,-1982.37,0.00041835,30]
[310914277,1704814371080,-1469.95,0.00041835,30]
[310914278,1704814371090,-2986.22,0.00041835,30]
[310914279,1704814371100,-1699.32,0.00041835,30]
[310914280,1704814371110,-3068.15,0.00041835,30]
[310914281,1704814371121,-686.48,0.00041835,30]
[310914282,1704814371131,-1390.68,0.00041835,30]
[310914283,1704814371141,-10247.09,0.00041835,30]
[310914284,1704814371152,-1223.53,0.00041835,30]
[310914285,1704814371162,-1685.22,0.00041835,30]
[310914286,1704814371172,-500.0,0.00041835,30]
[310914287,1704814371183,-500.0,0.00041835,30]
[310914288,1704814371194,-500.0,0.00041835,30]
[310914289,1704814371204,-1149.96,0.00041835,30]
[310914290,1704814371213,-6253.79,0.00041835,30]
[310914291,1704814371223,-500.0,0.00041835,30]
[310914292,1704814371234,-989.82,0.00041835,30]
[310914293,1704814371244,-325.51765434,0.00041835,30]
[310914294,1704814371255,-2365.66,0.00041835,30]
[310914295,1704814371265,-1963.83,0.00041835,30]
[310914296,1704814371276,-701.0,0.00041835,30]
[310914297,1704814371287,-705.46,0.00041835,30]
[310914298,1704814371298,-7334.72,0.00041835,30]
[310914299,1704814371308,-294.44,0.00041835,30]
[310914300,1704814371319,-2159.55,0.00041835,30]
[310914301,1704814371329,-7759.7,0.00041835,30]
[310914302,1704814371340,-7619.16,0.00041835,30]
[310914303,1704814371350,-1725.58,0.00041835,30]
[310914304,1704814371360,-1264.61,0.00041835,30]
[310914305,1704814371372,-2266.7,0.00041835,30]
[310914306,1704814371382,-500.0,0.00041835,30]
[310914307,1704814371391,-914.32,0.00041835,30]
[310914308,1704814371402,-500.0,0.00041835,30]
[310914309,1704814371413,-689.51,0.00041835,30]
[310914310,1704814371424,-500.0,0.00041835,30]
[310914311,1704814371434,-6777.19,0.00041835,30]
[310914312,1704814371445,-1573.82,0.00041835,30]
[310914313,1704814371716,-500.0,0.00041835,30]
[310914314,1704814371726,-4036.91,0.00041835,30]
[310914315,1704814371736,-3417.76,0.00041835,30]
[310914316,1704814371746,-2670.87,0.00041835,30]
[310914317,1704814371755,-649.74,0.00041835,30]
[310914318,1704814371765,-1768.69,0.00041835,30]
[310914319,1704814371775,-2656.66,0.00041835,30]
[310914320,1704814371784,-516.58593369,0.00041835,30]
[310914321,1704814371794,-3624.89,0.00041835,30]
[310914322,1704814371805,-500.0,0.00041835,30]
[310914323,1704814371814,-891.81,0.00041835,30]
[310914324,1704814371824,-1969.21,0.00041835,30]
[310914325,1704814371837,-4760.81,0.00041835,30]
[310914326,1704814371846,-1849.48,0.00041835,30]
[310914327,1704814371856,-2591.36,0.00041835,30]
[310914328,1704814371866,-1829.62,0.00041835,30]
[310914329,1704814371876,-507.02,0.00041835,30]
[310914330,1704814371886,-1545.72,0.00041835,30]
[310914331,1704814371896,-820.1,0.00041835,30]
[310914332,1704814371906,-1282.15,0.00041835,30]
[310914333,1704814371916,-3330.89,0.00041835,30]
[310914334,1704814371926,-7125.45,0.00041835,30]
[310914335,1704814371936,-1041.48,0.00041835,30]
[310914336,1704814371946,-500.0,0.00041835,30]
[310914337,1704814371956,-500.0,0.00041835,30]
[310914338,1704814371966,-4552.78,0.00041835,30]
[310914339,1704814371975,-25135.11,0.00041835,30]
[310914340,1704814371985,-3134.7,0.00041835,30]
[310914341,1704814371995,-18448.99,0.00041835,30]
[310914342,1704814372005,-2000.28,0.00041835,30]
[310914343,1704814372014,-500.0,0.00041835,30]
[310914344,1704814372024,-571.39705834,0.00041835,30]
[310914345,1704814372034,-500.0,0.00041835,30]
[310914346,1704814372043,-745.36,0.00041835,30]
[310914347,1704814372053,-1655.6,0.00041835,30]
[310914348,1704814372063,-13835.28,0.00041835,30]
[310914349,1704814372072,-1353.98,0.00041835,30]
[310914350,1704814372082,-3526.58,0.00041835,30]
[310914351,1704814372092,-2446.36,0.00041835,30]
[310914352,1704814372101,-19704.83,0.00041835,30]
[310914353,1704814372111,-11755.41,0.00041835,30]
[310914354,1704814372121,-2085.11,0.00041835,30]
[310914355,1704814372131,-975.77,0.00041835,30]
[310914356,1704814372141,-500.0,0.00041835,7]
[310914357,1704814372151,-5456.33,0.00041835,30]
[310914358,1704814372161,-703.77,0.00041835,30]
[310914359,1704814372171,-578.03,0.00041835,30]
[310914360,1704814372181,-18929.09,0.00041835,30]
[310914361,1704814372190,-91700.44,0.00041835,30]
[310914362,1704814372200,-500.0,0.00041835,30]
[310914363,1704814372210,-610.44,0.00041835,30]
[310914364,1704814372219,-11389.4,0.00041835,30]
[310914365,1704814372229,-4955.76,0.00041835,30]
[310914366,1704814372239,-685.04,0.00041835,30]
[310914367,1704814372249,-5644.78,0.00041835,30]
[310914368,1704814372259,-1643.59,0.00041835,30]
[310914369,1704814372269,-1534.89,0.00041835,30]
[310914370,1704814372278,-1919.34,0.00041835,30]
[310914371,1704814372288,-280.85283608,0.00041835,30]
[310914372,1704814372298,-1207.82,0.00041835,30]
[310914373,1704814372307,-3051.16,0.00041835,30]
[310914374,1704814372317,-2205.97,0.00041835,30]
[310914375,1704814372326,-500.0,0.00041835,30]
[310914376,1704814372336,-500.0,0.00041835,30]
[310914377,1704814372346,-4326.12,0.00041835,30]
[310914378,1704814372357,-23372.75,0.00041835,30]
[310914379,1704814372367,-4650.3,0.00041835,30]
[310914380,1704814372376,-3602.98,0.00041835,30]
[310914381,1704814372387,-500.0,0.00041835,30]
[310914382,1704814372396,-1706.69,0.00041835,30]
[310914383,1704814372406,-948.23,0.00041835,30]
[310914384,1704814372416,-1484.9,0.00041835,30]
[310914385,1704814372425,-625.91,0.00041835,30]
[310914386,1704814372435,-4750.61,0.00041835,30]
[310914387,1704814372445,-677.56,0.00041835,30]
[310914388,1704814372455,-753.01,0.00041835,30]
[310914389,1704814372464,-570.53,0.00041835,30]
[310914390,1704814372474,-1014.72,0.00041835,30]
[310914391,1704814372484,-1075.83,0.00041835,30]
[310914392,1704814372494,-10401.23,0.00041835,30]
[310914393,1704814372504,-500.0,0.00041835,30]
[310914394,1704814372514,-1988.56,0.00041835,30]
[310914395,1704814372523,-2247.55,0.00041835,30]
[310914396,1704814372534,-1760.09,0.00041835,30]
[310914397,1704814372544,-1917.59,0.00041835,30]
[310914398,1704814372553,-8509.95,0.00041835,30]
[310914399,1704814372563,-6630.63,0.00041835,30]
[310914400,1704814372573,-6677.97,0.00041835,30]
[310914401,1704814372582,-912.61,0.00041835,30]
[310914402,1704814372591,-500.0,0.00041835,30]
[310914403,1704814372602,-7738.46,0.00041835,30]
[310914404,1704814372611,-500.0,0.00041835,30]
[310914405,1704814372622,-190.65652679,0.00041835,30]
[310914406,1704814372631,-14437.73,0.00041835,30]
[310914407,1704814372641,-839.67,0.00041835,30]
[310914408,1704814372651,-1402.57,0.00041835,30]
[310914409,1704814372660,-814.2,0.00041835,30]
[310914410,1704814372672,-500.0,0.00041835,30]
[310914411,1704814372682,-2196.22,0.00041835,30]
[310914412,1704814372693,-36009.51,0.00041835,30]
[310914413,1704814372702,-2863.88,0.00041835,30]
[310914414,1704814372712,-12556.6,0.00041835,30]
[310914415,1704814372721,-3304.26,0.00041835,30]
[310914416,1704814372731,-2592.03,0.00041835,30]
[310914417,1704814372740,-2705.09,0.00041835,30]
[310914418,1704814372749,-500.0,0.00041835,30]
[310914419,1704814372760,-500.0,0.00041835,30]
[310914420,1704814372769,-500.0,0.00041835,30]
[310914421,1704814372780,-2400.96,0.00041835,30]
[310914422,1704814372789,-4406.91,0.00041835,30]
[310914423,1704814372799,-1297.88,0.00041835,30]
[310914424,1704814372808,-6577.65,0.00041835,30]
[310914425,1704814372819,-571.22,0.00041835,30]
[310914426,1704814372830,-500.0,0.00041835,30]
[310914427,1704814372841,-3403.92,0.00041835,30]
[310914428,1704814372850,-2751.1,0.00041835,30]
[310914429,1704814372860,-3033.25,0.00041835,30]
[310914430,1704814372869,-952.63,0.00041835,30]
[310914431,1704814372878,-1721.02,0.00041835,30]